bitfinex-derivatives/quotes_SOLF0:USTF0_20260203
["timestamp","ask_amount","ask_price","bid_price","bid_amount"]
[1770159851313,143.1412,97.938,97.851,5.27012872]
[1770159851508,143.1545,97.929,97.851,5.27012872]
[1770159851912,143.1693,97.919,97.845,9.2105]
[1770159852110,6.94442589,97.9,97.826,5.27012872]
[1770159852916,9.2065,97.889,97.835,9.2115]
[1770159853115,9.2065,97.889,97.826,5.27012872]
[1770159854016,9.2074,97.88,97.826,5.27012872]
[1770159854419,9.2074,97.88,97.78,143.3705]
[1770159854420,9.2094,97.858,97.798,9.215]
[1770159854609,143.2288,97.878,97.792,5.32566191]
[1770159854610,143.2562,97.859,97.792,5.32566191]
[1770159854810,6.94442589,97.86,97.792,5.32566191]
[1770159855011,9.2101,97.85,97.792,5.32566191]
[1770159855217,143.2588,97.858,97.792,5.32566191]
[1770159855413,143.2603,97.857,97.761,143.3986]
[1770159855611,6.94442589,97.84,97.766,5.32566191]
[1770159855815,6.94442589,97.82,97.751,143.4138]
[1770159856115,16.15552589,97.84,97.763,5.32566191]
[1770159856317,6.94442589,97.84,97.763,5.32566191]
[1770159856516,400.46,97.854,97.748,143.4181]
[1770159856517,6.94442589,97.86,97.779,5.30568499]
[1770159856911,6.94442589,97.86,97.782,148.67408499]
[1770159857116,6.94442589,97.86,97.789,9.2158]
[1770159857317,143.2629,97.855,97.782,5.30568499]
[1770159857518,6.94442589,97.86,97.782,5.30568499]
[1770159857519,143.2644,97.854,97.782,5.30568499]
[1770159857719,6.94442589,97.86,97.782,5.30568499]
[1770159858017,407.9,97.878,97.73,5.30568499]
[1770159858018,6.94442589,97.8,97.73,5.30568499]
[1770159858212,6.94442589,97.81,97.744,5.29352255]
[1770159858411,6.94442589,97.83,97.754,5.29352255]
[1770159858616,282.24,97.868,97.783,5.29352255]
[1770159858812,143.2464,97.866,97.783,5.29352255]
[1770159859022,6.94442589,97.83,97.76,5.29352255]
[1770159859215,143.2806,97.843,97.734,5.29352255]
[1770159859216,6.94442589,97.81,97.734,5.29352255]
[1770159859415,6.94442589,97.81,97.736,143.4356]
[1770159859614,6.94442589,97.81,97.737,5.29352255]
[1770159859916,6.94442589,97.81,97.745,5.29352255]
[1770159860123,143.3087,97.824,97.745,5.29352255]
[1770159860320,143.309,97.823,97.745,5.29352255]
[1770159860827,9.2134,97.815,97.745,5.29352255]
[1770159861329,6.94442589,97.81,97.745,5.29352255]
[1770159861621,9.2134,97.815,97.745,5.29352255]
[1770159862217,6.94442589,97.8,97.745,5.29352255]
[1770159863022,408.02,97.832,97.745,5.29352255]
[1770159863023,9.2135,97.815,97.745,5.29352255]
[1770159863323,9.2135,97.815,97.729,143.4461]
[1770159863324,6.94442589,97.85,97.763,5.25037521]
[1770159863622,143.3053,97.826,97.742,245.12]
[1770159863817,6.94442589,97.81,97.74,5.25037521]
[1770159864717,6.94442589,97.81,97.733,143.4404]
[1770159864718,408.08,97.833,97.746,5.23354775]
[1770159864923,6.94442589,97.84,97.777,5.23354775]
[1770159865122,9.2093,97.859,97.777,5.23354775]
[1770159865320,6.94442589,97.86,97.777,5.23354775]
[1770159865524,6.94442589,97.88,97.787,5.23354775]
[1770159865720,6.94442589,97.88,97.79,5.23354775]
[1770159865922,143.2378,97.872,97.79,5.23354775]
[1770159866123,6.94442589,97.88,97.791,9.2157]
[1770159866521,143.2335,97.875,97.791,9.2157]
[1770159867022,9.2091,97.862,97.791,9.2157]
[1770159867218,6.94442589,97.88,97.796,5.23268617]
[1770159867517,9.2066,97.888,97.812,5.23268617]
[1770159867718,6.94442589,97.88,97.812,5.23268617]
[1770159868317,9.2074,97.879,97.812,5.23268617]
[1770159869925,9.2074,97.879,97.812,14.44628617]
[1770159870126,6.94442589,97.88,97.812,14.44628617]
[1770159870324,6.94442589,97.88,97.812,5.23268617]
[1770159870626,9.2076,97.877,97.812,5.23268617]
[1770159872227,9.2066,97.888,97.814,5.25221688]
[1770159872818,6.94442589,97.87,97.814,5.25221688]
[1770159873227,6.94442589,97.85,97.791,5.28116337]
[1770159873827,143.2195,97.885,97.791,5.28116337]
[1770159873828,6.94442589,97.87,97.791,5.28116337]
[1770159874220,6.94442589,97.87,97.801,9.2146]
[1770159874526,6.94442589,97.87,97.802,5.26627609]
[1770159875028,143.1873,97.907,97.822,5.26627609]
[1770159875029,6.94442589,97.89,97.822,5.26627609]
[1770159875930,9.2066,97.888,97.831,9.2119]
[1770159876229,9.2066,97.888,97.822,5.26627609]
[1770159876824,9.2076,97.878,97.823,9.2126]
[1770159877024,9.2076,97.878,97.822,5.26627609]
[1770159877429,6.94442589,97.89,97.822,5.26627609]
[1770159878832,9.2069,97.885,97.822,5.26627609]
[1770159879933,9.2059,97.895,97.842,9.2108]
[1770159880228,6.94442589,97.89,97.822,5.26627609]
[1770159880629,9.2076,97.877,97.822,5.26627609]
[1770159881431,9.2086,97.867,97.822,5.26627609]
[1770159882030,143.246,97.866,97.795,5.2846538]
[1770159882235,6.94442589,97.83,97.773,5.2846538]
[1770159882433,6.94442589,97.81,97.74,5.28112483]
[1770159882630,6.94442589,97.81,97.749,5.28112483]
[1770159883237,9.2128,97.822,97.763,9.2183]
[1770159883438,6.94442589,97.83,97.763,14.49942483]
[1770159883639,6.94442589,97.83,97.763,5.28112483]
[1770159883841,9.2132,97.818,97.763,5.28112483]
[1770159885836,6.96158251,97.85,97.753,143.4106]
[1770159886042,6.96158251,97.85,97.771,5.27059165]
[1770159886236,6.96158251,97.86,97.79,5.27059165]
[1770159886441,150.21678251,97.86,97.79,5.27059165]
[1770159886643,143.2644,97.854,97.79,5.27059165]
[1770159886844,9.2107,97.844,97.79,5.27059165]
[1770159887344,9.2107,97.844,97.791,9.2156]
[1770159888136,9.2098,97.854,97.791,9.2156]
[1770159888342,9.2098,97.854,97.799,9.2149]
[1770159888838,143.2576,97.858,97.79,5.27059165]
[1770159889044,6.96158251,97.86,97.79,5.27059165]
[1770159889533,9.2105,97.846,97.79,9.2157]
[1770159889740,9.2105,97.846,97.791,5.24409393]
[1770159890242,9.2096,97.856,97.792,9.2155]
[1770159890543,9.2096,97.856,97.792,14.48042053]
[1770159890740,9.2114,97.837,97.792,5.26492053]
[1770159892643,6.96158251,97.83,97.761,5.2674909]
[1770159893348,6.96158251,97.85,97.774,5.2674909]
[1770159893842,9.2122,97.829,97.774,5.2674909]
[1770159894945,9.2111,97.84,97.776,5.34284496]
[1770159895344,6.96158251,97.85,97.776,5.34284496]
[1770159896042,9.2103,97.849,97.79,9.2157]
[1770159896439,9.2103,97.849,97.771,143.3842]
[1770159896440,6.96158251,97.87,97.796,5.3247362]
[1770159897435,6.96158251,97.85,97.777,5.3247362]
[1770159897736,143.2713,97.849,97.777,5.3247362]
[1770159897944,6.96158251,97.83,97.777,5.3247362]
[1770159898448,9.2134,97.815,97.758,14.7108418]
[1770159898744,9.2134,97.815,97.759,5.4920418]
[1770159899846,9.2142,97.807,97.759,5.4920418]
[1770159900143,6.96158251,97.83,97.759,5.4920418]
[1770159900345,6.96158251,97.83,97.743,242.16]
[1770159900346,7.54577994,97.855,97.774,143.3802]
[1770159900542,6.96158251,97.87,97.781,5.50241666]
[1770159900741,6.96158251,97.85,97.781,5.50241666]
[1770159901145,6.96158251,97.83,97.761,5.50241666]
[1770159901651,6.96158251,97.83,97.762,5.50241666]
[1770159902641,6.96158251,97.81,97.741,5.5031839]
[1770159902846,6.96158251,97.79,97.722,5.5031839]
[1770159903047,143.3441,97.799,97.722,5.5031839]
[1770159903048,6.96158251,97.77,97.722,5.5031839]
[1770159903343,6.96158251,97.77,97.689,143.5053]
[1770159903344,9.2178,97.769,97.703,9.2239]
[1770159903549,9.2178,97.769,97.702,5.5031839]
[1770159903550,6.96158251,97.77,97.702,5.5031839]
[1770159903748,6.96158251,97.77,97.704,5.5031839]
[1770159904345,6.96158251,97.77,97.707,9.2236]
[1770159904545,6.96158251,97.77,97.704,5.5031839]
[1770159905147,9.2178,97.769,97.704,5.5031839]
[1770159905751,6.96158251,97.77,97.704,5.5031839]
[1770159905949,6.96158251,97.75,97.681,5.51422179]
[1770159906355,16.18118251,97.75,97.681,5.51422179]
[1770159907354,9.2196,97.75,97.683,5.51847823]
[1770159907751,9.2185,97.762,97.685,5.51847823]
[1770159907948,6.96158251,97.77,97.689,5.51847823]
[1770159908452,9.2189,97.758,97.689,5.51847823]
[1770159908853,6.96158251,97.75,97.689,5.51847823]
[1770159909049,150.37838251,97.75,97.689,5.51847823]
[1770159909249,6.96158251,97.75,97.689,5.51847823]
[1770159909449,408.32,97.791,97.66,143.5476]
[1770159909450,9.2189,97.758,97.693,5.51467631]
[1770159909646,143.3911,97.767,97.693,5.51467631]
[1770159909851,6.96158251,97.75,97.661,5.51467631]
[1770159910357,9.2209,97.736,97.672,9.2268]
[1770159910560,6.96158251,97.73,97.661,5.51467631]
[1770159910859,6.96158251,97.71,97.638,5.51482346]
[1770159911257,6.96158251,97.71,97.651,9.2288]
[1770159911750,6.96158251,97.71,97.638,5.51482346]
[1770159912155,9.2238,97.705,97.641,5.51482346]
[1770159912351,6.96158251,97.71,97.641,5.51482346]
[1770159912553,6.96158251,97.71,97.617,143.6108]
[1770159912554,143.5209,97.679,97.6,5.50226296]
[1770159912755,6.96158251,97.67,97.6,5.50226296]
[1770159913152,16.18878251,97.67,97.601,9.2336]
[1770159913347,6.96158251,97.69,97.612,5.50226296]
[1770159913552,143.5137,97.684,97.612,5.50226296]
[1770159913756,9.2284,97.657,97.587,5.50226296]
[1770159914151,6.96158251,97.65,97.587,5.50226296]
[1770159914652,6.96158251,97.67,97.598,5.50110244]
[1770159914855,6.96158251,97.67,97.621,9.2317]
[1770159915054,352.18,97.676,97.621,9.2317]
[1770159915256,6.96158251,97.69,97.621,9.2317]
[1770159915257,6.96158251,97.69,97.621,5.50110244]
[1770159915558,9.2255,97.688,97.624,9.2314]
[1770159915953,9.2255,97.688,97.621,5.50110244]
[1770159916653,9.2255,97.688,97.623,5.52076249]
[1770159916860,143.4193,97.748,97.638,5.52076249]
[1770159917051,143.3887,97.769,97.6,6.96158251]
[1770159917052,143.3887,97.769,97.675,5.52076249]
[1770159917255,9.2196,97.75,97.68,9.2261]
[1770159917451,143.4329,97.739,97.675,5.52076249]
[1770159917652,6.96158251,97.74,97.659,5.52076249]
[1770159917853,408.6,97.759,97.671,5.52076249]
[1770159918055,9.2202,97.743,97.671,5.52076249]
[1770159918452,6.96158251,97.76,97.681,5.46520379]
[1770159918658,6.96158251,97.78,97.693,5.46520379]
[1770159919252,143.3866,97.77,97.693,5.46520379]
[1770159919459,6.96158251,97.74,97.665,5.46520379]
[1770159919662,6.96158251,97.74,97.667,5.46520379]
[1770159920055,6.96158251,97.76,97.688,5.46520379]
[1770159920660,9.2206,97.74,97.688,5.46520379]
[1770159920965,143.4088,97.755,97.688,5.46520379]
[1770159921262,9.2196,97.75,97.688,5.46520379]
[1770159921865,9.2179,97.768,97.7,5.43148933]
[1770159922258,6.96158251,97.79,97.703,5.43148933]
[1770159922460,6.96158251,97.79,97.723,9.222]
[1770159922755,6.96158251,97.79,97.724,5.43028387]
[1770159923165,6.96158251,97.79,97.726,9.2218]
[1770159923458,6.96158251,97.81,97.736,5.43028387]
[1770159923668,143.299,97.83,97.751,9.2194]
[1770159923860,143.299,97.83,97.754,5.43028387]
[1770159923861,6.96158251,97.83,97.754,5.43028387]
[1770159924561,6.96158251,97.83,97.755,9.219]
[1770159924764,6.96158251,97.83,97.755,14.59167035]
[1770159925065,9.2133,97.817,97.755,5.37267035]
[1770159926171,6.96158251,97.79,97.735,5.37267035]
[1770159926461,6.96158251,97.79,97.72,5.38268409]
[1770159926764,6.96158251,97.79,97.729,9.2215]
[1770159927067,6.96158251,97.79,97.72,5.38268409]
[1770159927666,6.96158251,97.82,97.74,5.38268409]
[1770159927962,6.96158251,97.84,97.764,5.38268409]
[1770159928159,9.2112,97.839,97.764,5.38268409]
[1770159928555,342.48,97.855,97.768,5.4336698]
[1770159928760,143.2655,97.853,97.768,5.4336698]
[1770159929062,342.48,97.855,97.768,5.4336698]
[1770159929265,9.211,97.841,97.771,5.4336698]
[1770159929558,6.96158251,97.86,97.783,5.4336698]
[1770159929760,143.2893,97.837,97.759,5.4336698]
[1770159930066,6.96158251,97.82,97.736,5.4336698]
[1770159930259,415.42158251,97.84,97.747,5.43366347]
[1770159930459,408.46,97.84,97.76,5.43366347]
[1770159930667,6.96158251,97.87,97.783,5.43366347]
[1770159930861,143.2421,97.869,97.792,9.2155]
[1770159931353,9.2095,97.857,97.792,9.2155]
[1770159932455,9.2095,97.857,97.792,14.71971497]
[1770159932665,9.2095,97.857,97.793,5.50421497]
[1770159933061,9.2104,97.847,97.793,5.50421497]
[1770159933255,9.2104,97.847,97.756,143.4061]
[1770159933256,9.2104,97.847,97.772,14.72161497]
[1770159933456,6.96158251,97.85,97.773,5.50421497]
[1770159933860,6.96158251,97.83,97.752,5.50421497]
[1770159934260,9.2135,97.814,97.752,5.50421497]
[1770159934462,6.96158251,97.81,97.725,5.48986012]
[1770159934866,415.32158251,97.81,97.725,5.48986012]
[1770159935166,9.2149,97.8,97.74,9.2205]
[1770159935562,415.32158251,97.81,97.725,148.94236012]
[1770159935563,143.3323,97.807,97.725,5.48986012]
[1770159935868,415.32158251,97.81,97.725,5.48986012]
[1770159936259,6.96158251,97.81,97.725,5.48986012]
[1770159936566,415.32158251,97.81,97.725,5.48986012]
[1770159936770,9.2149,97.8,97.731,5.48745137]
[1770159936965,415.32158251,97.81,97.731,5.48745137]
[1770159937470,6.96158251,97.81,97.742,5.48745137]
[1770159937671,143.2594,97.857,97.731,143.4424]
[1770159937672,33.14789046,97.856,97.763,143.3965]
[1770159937965,33.14789046,97.85,97.758,143.4034]
[1770159938165,33.14789046,97.85,97.757,241.86]
[1770159938166,33.14789046,97.841,97.778,9.2169]
[1770159938562,6.96158251,97.86,97.77,143.3856]
[1770159938764,33.14868161,97.845,97.753,143.4104]
[1770159938962,33.14868161,97.845,97.763,143.3954]
[1770159939167,33.14868161,97.845,97.76,143.4008]
[1770159939471,33.14868161,97.845,97.786,9.2161]
[1770159939672,33.14868161,97.845,97.764,143.3947]
[1770159939867,33.14868161,97.839,97.724,143.4529]
[1770159940071,33.14868161,97.839,97.743,242.72]
[1770159940274,16.17458251,97.82,97.743,242.72]
[1770159940471,16.17458251,97.82,97.714,143.4673]
[1770159940472,6.96158251,97.8,97.713,143.4696]
[1770159940665,6.96158251,97.8,97.721,143.4577]
[1770159940861,6.96158251,97.8,97.705,243.14]
[1770159940862,16.17648251,97.8,97.73,9.2213]
[1770159941061,405.0,97.811,97.734,143.4388]
[1770159941262,6.96158251,97.82,97.734,143.438]
[1770159941468,6.96158251,97.82,97.728,143.4481]
[1770159941666,9.2136,97.813,97.748,9.2197]
[1770159941967,33.18324806,97.812,97.73,143.4441]
[1770159942268,33.18324806,97.81,97.742,143.427]
[1770159942768,33.18324806,97.81,97.728,143.4481]
[1770159942971,33.18324806,97.81,97.732,143.4422]
[1770159943168,33.18324806,97.81,97.756,9.2189]
[1770159943370,33.18324806,97.81,97.731,143.4434]
[1770159943569,33.18324806,97.81,97.726,243.2]
[1770159943767,33.1288745,97.798,97.733,9.2211]
[1770159944773,9.215,97.799,97.699,143.4904]
[1770159944774,33.12608225,97.779,97.699,143.4904]
[1770159945467,33.12608225,97.776,97.71,9.2232]
[1770159945667,33.12608225,97.776,97.704,143.4829]
[1770159946067,33.12608225,97.776,97.719,9.2224]
[1770159946568,33.12608225,97.776,97.696,143.4945]
[1770159946569,33.1291506,97.798,97.717,143.4639]
[1770159946768,9.2154,97.794,97.728,9.2215]
[1770159946970,33.1291506,97.793,97.728,9.2215]
[1770159947369,42.3448506,97.791,97.728,9.2215]
[1770159947570,33.1291506,97.79,97.728,9.2215]
[1770159947770,33.1291506,97.79,97.715,9.2228]
[1770159947973,33.1291506,97.777,97.715,9.2228]
[1770159948267,33.1291506,97.777,97.713,243.86]
[1770159949468,9.2174,97.773,97.713,243.86]
[1770159949668,143.3533,97.793,97.672,143.5294]
[1770159949669,40.09568925,97.76,97.672,143.5294]
[1770159949871,33.12908582,97.739,97.665,143.5406]
[1770159950073,9.2208,97.737,97.675,9.2266]
[1770159950371,6.96660343,97.73,97.658,143.5501]
[1770159950570,33.13611606,97.709,97.651,9.2288]
[1770159950775,33.13611606,97.709,97.632,143.5884]
[1770159950964,33.13611606,97.709,97.641,143.5759]
[1770159951165,33.13611606,97.709,97.65,9.229]
[1770159951574,33.13611606,97.709,97.627,245.24]
[1770159951772,33.13611606,97.707,97.639,9.23]
[1770159951976,33.13611606,97.707,97.628,143.5943]
[1770159952272,33.13611606,97.707,97.648,9.2291]
[1770159953977,6.96660343,97.69,97.624,245.2]
[1770159954376,6.96660343,97.69,97.619,143.608]
[1770159954571,6.96660343,97.69,97.609,143.6224]
[1770159954572,33.18868639,97.689,97.627,9.2311]
[1770159955768,33.18864021,97.687,97.627,9.2311]
[1770159956268,33.18864021,97.687,97.637,9.2302]
[1770159957579,33.18864021,97.687,97.647,9.2293]
[1770159958375,33.18864021,97.687,97.628,143.5948]
[1770159958676,33.20145525,97.719,97.636,143.5833]
[1770159958883,33.20145525,97.711,97.622,244.9]
[1770159959076,33.20145525,97.711,97.625,143.5988]
[1770159959276,33.20145525,97.711,97.63,143.5921]
[1770159959479,6.96660343,97.72,97.622,245.32]
[1770159959480,33.20145525,97.708,97.642,9.2297]
[1770159959779,33.20145525,97.708,97.638,143.5804]
[1770159959981,33.20145525,97.708,97.615,143.6127]
[1770159959982,33.20145525,97.708,97.642,9.2297]
[1770159960377,33.1986817,97.729,97.65,143.5622]
[1770159960578,33.1986817,97.729,97.659,143.5485]
[1770159960777,365.68,97.758,97.672,143.5298]
[1770159960981,9.2195,97.751,97.684,9.2258]
[1770159961279,33.1986817,97.75,97.661,245.76]
[1770159961480,9.2207,97.739,97.674,9.2267]
[1770159961679,33.1986817,97.738,97.661,245.76]
[1770159961883,33.1986817,97.738,97.652,143.5597]
[1770159962081,6.96660343,97.74,97.672,9.2268]
[1770159962082,42.4195817,97.736,97.672,9.2268]
[1770159962276,33.1986817,97.735,97.672,9.2268]
[1770159962684,33.1986817,97.735,97.681,9.226]
[1770159962982,143.3606,97.788,97.64,6.96660343]
[1770159962983,33.19915996,97.769,97.7,143.488]
[1770159963385,33.19915996,97.769,97.719,9.2224]
[1770159963579,33.19915996,97.769,97.713,143.4699]
[1770159963784,42.41535996,97.786,97.702,143.4851]
[1770159963973,42.41535996,97.786,97.705,143.481]
[1770159964177,33.19915996,97.769,97.692,246.1]
[1770159964379,33.19915996,97.769,97.69,143.5037]
[1770159965286,33.19915996,97.769,97.663,143.5428]
[1770159965287,33.21268261,97.763,97.663,143.5428]
[1770159965684,33.21268261,97.749,97.663,143.5428]
[1770159965884,33.21268261,97.749,97.675,9.2266]
[1770159966084,33.21268261,97.749,97.67,143.5333]
[1770159966286,33.21268261,97.749,97.661,246.82]
[1770159966582,150.38250343,97.75,97.665,9.2275]
[1770159966583,33.22204063,97.729,97.665,9.2275]
[1770159966787,33.22204063,97.729,97.661,246.82]
[1770159966991,33.22204063,97.729,97.671,143.5308]
[1770159967188,33.22204063,97.729,97.665,247.3]
[1770159967384,33.22204063,97.729,97.67,9.2271]
[1770159968995,42.44183368,97.718,97.658,9.2282]
[1770159969198,33.21923368,97.709,97.627,143.5958]
[1770159969690,33.21923368,97.707,97.638,9.2301]
[1770159970096,33.21923368,97.689,97.608,143.6237]
[1770159970290,33.21923368,97.686,97.616,9.2321]
[1770159970694,33.21923368,97.686,97.637,9.2302]
[1770159970888,33.21923368,97.686,97.61,143.6205]
[1770159971095,33.21923368,97.686,97.618,143.6098]
[1770159971300,33.21923368,97.686,97.633,9.2305]
[1770159971496,33.21923368,97.686,97.625,143.599]
[1770159971692,33.21761129,97.708,97.626,248.68]
[1770159971902,33.21761129,97.728,97.643,143.5725]
[1770159972299,33.21761129,97.728,97.657,143.5523]
[1770159972493,33.21761129,97.728,97.644,248.94]
[1770159972894,33.20508077,97.709,97.644,248.94]
[1770159973194,33.20508077,97.703,97.639,9.23]
[1770159973792,42.42948077,97.699,97.626,9.2312]
[1770159973995,33.20508077,97.698,97.626,9.2312]
[1770159974798,33.21011693,97.694,97.626,9.2312]
[1770159975299,9.2254,97.688,97.626,9.2312]
[1770159975498,42.43551693,97.688,97.626,9.2312]
[1770159975800,33.21011693,97.687,97.626,9.2312]
[1770159976298,33.28498542,97.669,97.564,143.688]
[1770159976498,33.28498542,97.669,97.568,143.6826]
[1770159976699,143.5265,97.675,97.587,9.2349]
[1770159976700,33.28498542,97.648,97.587,9.2349]
[1770159977899,9.2294,97.646,97.577,9.2359]
[1770159978101,33.28498542,97.645,97.577,9.2359]
[1770159978499,9.2311,97.629,97.567,9.2368]
[1770159978701,33.21089961,97.628,97.543,143.7196]
[1770159978896,33.21089961,97.628,97.546,143.7152]
[1770159979096,9.2313,97.627,97.557,9.2377]
[1770159979304,33.21089961,97.648,97.58,143.6653]
[1770159979502,33.21089961,97.668,97.593,143.6453]
[1770159979696,33.21089961,97.668,97.61,9.2328]
[1770159979901,33.21089961,97.668,97.588,143.6536]
[1770159980097,33.21089961,97.659,97.557,143.6982]
[1770159980298,9.2292,97.648,97.588,9.2348]
[1770159980500,33.21089961,97.659,97.578,143.6673]
[1770159980698,33.21089961,97.659,97.575,143.673]
[1770159981500,408.8,97.67,97.575,143.673]
[1770159981501,33.18414699,97.657,97.589,143.6522]
[1770159981701,33.18414699,97.657,97.579,143.6666]
[1770159982595,33.18414699,97.657,97.587,9.2349]
[1770159983301,42.41254699,97.657,97.587,9.2349]
[1770159983601,33.18060761,97.656,97.59,143.6503]
[1770159983800,33.18060761,97.656,97.596,143.6409]
[1770159984107,33.18060761,97.679,97.622,9.2315]
[1770159984702,9.2248,97.695,97.62,143.6066]
[1770159984908,33.1920663,97.7,97.627,143.5953]
[1770159985204,143.4217,97.747,97.601,143.6345]
[1770159985205,33.1920663,97.721,97.638,143.5796]
[1770159985400,33.1920663,97.739,97.653,143.5571]
[1770159985596,33.1920663,97.739,97.661,143.546]
[1770159985797,33.1920663,97.739,97.647,250.3]
[1770159986004,33.1920663,97.739,97.65,143.5627]
[1770159986401,33.1920663,97.739,97.652,143.5591]
[1770159986895,33.19329119,97.718,97.627,251.08]
[1770159987100,33.19329119,97.718,97.631,143.5895]
[1770159987609,33.19329119,97.687,97.595,251.5]
[1770159988102,33.19329119,97.684,97.611,9.2326]
[1770159988304,33.19329119,97.679,97.595,251.5]
[1770159988605,6.96660343,97.66,97.6,9.2337]
[1770159988905,40.16213186,97.66,97.6,9.2337]
[1770159990108,33.19552843,97.66,97.61,9.2327]
[1770159990306,40.21511316,97.68,97.6,143.6362]
[1770159990605,40.21511316,97.68,97.606,143.627]
[1770159990803,40.21511316,97.68,97.611,9.2326]
[1770159992012,40.21511316,97.68,97.62,9.2317]
[1770159992208,40.21511316,97.68,97.604,143.6299]
[1770159992209,33.24850973,97.7,97.632,143.5885]
[1770159992510,33.25189758,97.72,97.648,143.5642]
[1770159992807,33.25189758,97.72,97.625,143.5985]
[1770159992808,40.21850101,97.72,97.646,251.88]
[1770159993001,33.25189758,97.718,97.629,143.5936]
[1770159993205,143.4434,97.732,97.62,143.6055]
[1770159993206,40.21850101,97.7,97.62,143.6055]
[1770159993404,40.21850101,97.7,97.614,252.08]
[1770159993606,40.21850101,97.7,97.622,143.6039]
[1770159993808,40.21850101,97.7,97.614,252.08]
[1770159993809,9.2244,97.699,97.614,252.08]
[1770159994106,33.25189758,97.698,97.614,252.08]
[1770159994308,9.225,97.693,97.632,9.2306]
[1770159995911,6.96660343,97.7,97.614,252.08]
[1770159995912,33.25264628,97.69,97.614,252.08]
[1770159996614,9.2265,97.676,97.614,252.08]
[1770159997112,33.25256679,97.679,97.617,9.2321]
[1770159997311,33.25256679,97.679,97.614,252.08]
[1770159998914,33.25256679,97.679,97.627,9.2312]
[1770160000012,33.25386123,97.676,97.617,9.2321]
[1770160000211,143.5276,97.674,97.569,143.6808]
[1770160000515,6.96660343,97.68,97.549,434.7103]
[1770160000516,6.96660343,97.64,97.563,254.4]
[1770160000716,6.96660343,97.64,97.57,143.6802]
[1770160001209,6.96660343,97.64,97.578,143.6677]
[1770160001410,33.26198559,97.643,97.586,143.6565]
[1770160001610,6.96660343,97.66,97.589,143.6524]
[1770160001810,6.96660343,97.66,97.609,9.2328]
[1770160002016,33.26198559,97.664,97.609,9.2328]
[1770160002511,33.26198559,97.664,97.598,9.2338]
[1770160002816,33.26198559,97.664,97.591,143.649]
[1770160003012,33.26198559,97.664,97.616,9.2321]
[1770160003318,33.26175387,97.679,97.616,9.2321]
[1770160004017,9.2265,97.677,97.616,9.2321]
[1770160004212,33.26175387,97.676,97.616,9.2321]
[1770160004816,33.26175387,97.676,97.624,9.2314]
[1770160005609,6.96660343,97.64,97.561,143.6927]
[1770160005813,33.28185253,97.639,97.573,143.6753]
[1770160006211,33.28185253,97.639,97.57,254.26]
[1770160007918,33.2804945,97.632,97.575,9.236]
[1770160008510,9.2318,97.62,97.564,9.2371]
[1770160008713,40.32574461,97.63,97.565,255.52]
[1770160009720,9.2317,97.622,97.565,255.52]
[1770160010514,33.33578518,97.63,97.566,143.686]
[1770160011022,33.33578518,97.63,97.578,9.2358]
[1770160011719,9.2292,97.648,97.567,143.6844]
[1770160011922,9.2292,97.648,97.544,143.7181]
[1770160011923,33.35421083,97.647,97.568,256.64]
[1770160012115,9.231,97.629,97.548,143.7121]
[1770160012315,9.231,97.629,97.544,143.7181]
[1770160012316,33.35421083,97.628,97.549,256.78]
[1770160012720,33.35421083,97.628,97.558,9.2377]
[1770160012924,33.35421083,97.628,97.55,256.98]
[1770160013123,33.35405709,97.648,97.574,143.6745]
[1770160013817,9.2293,97.647,97.592,9.2345]
[1770160014021,33.35405709,97.648,97.593,257.12]
[1770160014224,33.35405709,97.669,97.585,143.6572]
[1770160014517,6.98995943,97.67,97.599,9.2338]
[1770160014518,42.58269432,97.66,97.599,9.2338]
[1770160015222,42.58269432,97.66,97.607,9.233]
[1770160015423,33.35447806,97.657,97.586,257.2]
[1770160016319,9.2292,97.649,97.586,257.2]
[1770160016824,9.2292,97.649,97.596,9.234]
[1770160017025,9.2292,97.649,97.597,257.74]
[1770160017321,9.2292,97.649,97.598,257.72]
[1770160017527,9.2292,97.649,97.599,257.7]
[1770160019629,33.33487444,97.641,97.566,143.686]
[1770160019831,33.33487444,97.641,97.567,258.48]
[1770160020324,33.33487444,97.661,97.576,143.6709]
[1770160020724,33.33487444,97.661,97.574,143.6735]
[1770160020931,33.33314684,97.637,97.567,258.48]
[1770160021528,9.2308,97.631,97.573,9.2363]